[Event "Early-Titled-Tuesday-Blitz-May-07-2024"]
[Site "Chess.com"]
[Date "2024.05.07"]
[Round "9"]
[White "jinbojinbo"]
[Black "ATM622"]
[Result "1-0"]
[WhiteElo "2648"]
[BlackElo "2516"]
[TimeControl "180+1"]
[EndTime "9:53:52 PDT"]
[Termination "jinbojinbo won by resignation"]

1. c4 {[%clk 0:03:00.9]} 1... e5 {[%clk 0:02:58.1]} 2. Nc3 {[%clk 0:03:00.4]}
2... Nf6 {[%clk 0:02:57.7]} 3. g3 {[%clk 0:02:59]} 3... c6 {[%clk 0:02:53.4]} 4.
d4 {[%clk 0:02:55]} 4... exd4 {[%clk 0:02:47.4]} 5. Qxd4 {[%clk 0:02:55.9]} 5...
d5 {[%clk 0:02:42.3]} 6. cxd5 {[%clk 0:02:54.7]} 6... cxd5 {[%clk 0:02:37.1]} 7.
Bg2 {[%clk 0:02:47.7]} 7... Nc6 {[%clk 0:02:36.6]} 8. Qa4 {[%clk 0:02:45.2]}
8... Bb4 {[%clk 0:02:26]} 9. Bd2 {[%clk 0:02:12.4]} 9... Bd7 {[%clk 0:02:17.2]}
10. Nf3 {[%clk 0:02:05.6]} 10... O-O {[%clk 0:02:04.2]} 11. O-O {[%clk
0:02:02.6]} 11... d4 {[%clk 0:02:04.2]} 12. Nb1 {[%clk 0:02:02.3]} 12... a5
{[%clk 0:01:59.9]} 13. Bg5 {[%clk 0:01:52.8]} 13... h6 {[%clk 0:01:56.1]} 14.
Bxf6 {[%clk 0:01:52.6]} 14... Qxf6 {[%clk 0:01:55.8]} 15. Nbd2 {[%clk
0:01:50.8]} 15... Ne5 {[%clk 0:01:47.6]} 16. Qd1 {[%clk 0:01:48.1]} 16... Nxf3+
{[%clk 0:01:37.1]} 17. Nxf3 {[%clk 0:01:46.2]} 17... Bc5 {[%clk 0:01:35]} 18.
Rc1 {[%clk 0:01:42.7]} 18... Rac8 {[%clk 0:01:28.5]} 19. Ne1 {[%clk 0:01:32.5]}
19... b5 {[%clk 0:01:19.9]} 20. Nd3 {[%clk 0:01:30.9]} 20... Bb6 {[%clk
0:01:18]} 21. Qd2 {[%clk 0:01:30.6]} 21... Be6 {[%clk 0:01:08.5]} 22. a3 {[%clk
0:01:23.8]} 22... Bc4 {[%clk 0:01:03.7]} 23. Nf4 {[%clk 0:01:21.8]} 23... Rfd8
{[%clk 0:01:00.3]} 24. h4 {[%clk 0:01:17.3]} 24... a4 {[%clk 0:00:59.4]} 25. Be4
{[%clk 0:01:16.5]} 25... Qe5 {[%clk 0:00:52.1]} 26. Bd3 {[%clk 0:01:15.3]} 26...
Rd7 {[%clk 0:00:38.5]} 27. Bxc4 {[%clk 0:00:50.4]} 27... bxc4 {[%clk 0:00:36.3]}
28. Qb4 {[%clk 0:00:50.4]} 28... Qc5 {[%clk 0:00:07.2]} 29. Qxa4 {[%clk
0:00:50.1]} 29... Ra7 {[%clk 0:00:06.6]} 30. Qc2 {[%clk 0:00:49.8]} 30... c3
{[%clk 0:00:05.3]} 31. Rfd1 {[%clk 0:00:41.8]} 31... Qa5 {[%clk 0:00:03.2]} 32.
Qb3 {[%clk 0:00:32.6]} 32... Rb8 {[%clk 0:00:02.8]} 33. bxc3 {[%clk 0:00:28.6]}
33... dxc3 {[%clk 0:00:02.4]} 34. Qxc3 {[%clk 0:00:28]} 34... Qxa3 {[%clk
0:00:02.6]} 35. Qxa3 {[%clk 0:00:27.1]} 35... Rxa3 {[%clk 0:00:02.7]} 36. Kg2
{[%clk 0:00:27.2]} 36... Ra2 {[%clk 0:00:01.5]} 37. Rb1 {[%clk 0:00:27.2]} 37...
Ba7 {[%clk 0:00:01.1]} 38. Rxb8+ {[%clk 0:00:26.9]} 38... Bxb8 {[%clk 0:00:02]}
39. Rd8+ {[%clk 0:00:27.1]} 39... Kh7 {[%clk 0:00:02.9]} 40. Rxb8 {[%clk
0:00:27.8]} 40... g5 {[%clk 0:00:03.2]} 41. hxg5 {[%clk 0:00:27.7]} 41... hxg5
{[%clk 0:00:04.1]} 42. Nh3 {[%clk 0:00:28.1]} 42... f6 {[%clk 0:00:02.9]} 43. e3
{[%clk 0:00:28.1]} 43... Kg6 {[%clk 0:00:02.7]} 44. Rb6 {[%clk 0:00:28.3]} 44...
Ra5 {[%clk 0:00:01.8]} 45. Ng1 {[%clk 0:00:28.2]} 45... Ra4 {[%clk 0:00:01.5]}
46. Ne2 {[%clk 0:00:28.4]} 46... Ra2 {[%clk 0:00:01.3]} 47. Nc3 {[%clk
0:00:28.5]} 47... Rc2 {[%clk 0:00:01.2]} 48. Nd5 {[%clk 0:00:28.5]} 48... Kf5
{[%clk 0:00:01.4]} 49. Rxf6+ {[%clk 0:00:28.4]} 49... Ke5 {[%clk 0:00:01]} 50.
Rg6 {[%clk 0:00:28.2]} 50... Kxd5 {[%clk 0:00:01.3]} 51. Rxg5+ {[%clk
0:00:28.7]} 51... Ke4 {[%clk 0:00:01.8]} 52. Rg4+ {[%clk 0:00:28.7]} 52... Kf5
{[%clk 0:00:02.2]} 53. Rf4+ {[%clk 0:00:29.6]} 53... Kg5 {[%clk 0:00:02.6]} 54.
e4 {[%clk 0:00:29.1]} 54... Rc7 {[%clk 0:00:02.3]} 55. Rf5+ {[%clk 0:00:28.5]}
55... Kg6 {[%clk 0:00:02.8]} 56. g4 {[%clk 0:00:28.4]} 56... Ra7 {[%clk
0:00:02.6]} 57. f3 {[%clk 0:00:28.7]} 57... Ra1 {[%clk 0:00:01.3]} 58. Kg3
{[%clk 0:00:28.8]} 58... Rf1 {[%clk 0:00:00.9]} 59. Kf4 {[%clk 0:00:29]} 59...
Re1 {[%clk 0:00:01.3]} 60. Ra5 {[%clk 0:00:29]} 60... Kf6 {[%clk 0:00:01.5]} 61.
Ra6+ {[%clk 0:00:29.2]} 61... Kf7 {[%clk 0:00:01.9]} 62. g5 {[%clk 0:00:29.6]}
62... Rg1 {[%clk 0:00:01.9]} 63. Kf5 {[%clk 0:00:29.6]} 63... Rf1 {[%clk
0:00:01.8]} 64. f4 {[%clk 0:00:29.9]} 64... Rb1 {[%clk 0:00:02]} 65. Ra7+ {[%clk
0:00:29.9]} 65... Kf8 {[%clk 0:00:02.2]} 66. e5 {[%clk 0:00:30.1]} 66... Rb6
{[%clk 0:00:01.5]} 67. g6 {[%clk 0:00:30.1]} 67... Rb4 {[%clk 0:00:01.3]} 68.
Kg5 {[%clk 0:00:30]} 68... Rb2 {[%clk 0:00:01.2]} 69. f5 {[%clk 0:00:30.1]}
69... Rb6 {[%clk 0:00:00.6]} 70. Ra8+ {[%clk 0:00:29.5]} 70... Ke7 {[%clk
0:00:00.3]} 71. g7 {[%clk 0:00:30]} 71... Kf7 {[%clk 0:00:00.3]} 1-0

[Event "Early-Titled-Tuesday-Blitz-May-07-2024"]
[Site "Chess.com"]
[Date "2024.05.07"]
[Round "9"]
[White "masnyszachistaaa"]
[Black "masterofpuppets2"]
[Result "1-0"]
[WhiteElo "2592"]
[BlackElo "2471"]
[TimeControl "180+1"]
[EndTime "9:54:00 PDT"]
[Termination "masnyszachistaaa won by resignation"]

1. Nf3 {[%clk 0:03:00.9]} 1... d5 {[%clk 0:02:59.3]} 2. b3 {[%clk 0:02:59.7]}
2... Nf6 {[%clk 0:02:57.9]} 3. Bb2 {[%clk 0:02:59.8]} 3... e6 {[%clk 0:02:58.3]}
4. g3 {[%clk 0:02:50.1]} 4... Bd6 {[%clk 0:02:55.4]} 5. Bg2 {[%clk 0:02:49.8]}
5... O-O {[%clk 0:02:54]} 6. O-O {[%clk 0:02:49.7]} 6... Re8 {[%clk 0:02:54.2]}
7. c4 {[%clk 0:02:45.6]} 7... dxc4 {[%clk 0:02:54]} 8. bxc4 {[%clk 0:02:45.1]}
8... e5 {[%clk 0:02:54.5]} 9. d3 {[%clk 0:02:44.7]} 9... Nc6 {[%clk 0:02:50.5]}
10. Ng5 {[%clk 0:02:40.6]} 10... h6 {[%clk 0:02:39.1]} 11. Ne4 {[%clk
0:02:39.1]} 11... Bf8 {[%clk 0:02:31.3]} 12. Nxf6+ {[%clk 0:02:34.6]} 12... Qxf6
{[%clk 0:02:31.2]} 13. Nd2 {[%clk 0:02:35.1]} 13... Nd4 {[%clk 0:02:28.3]} 14.
Rb1 {[%clk 0:02:24.2]} 14... c6 {[%clk 0:02:22.3]} 15. e3 {[%clk 0:02:16.5]}
15... Nf5 {[%clk 0:02:12.7]} 16. Qe2 {[%clk 0:02:03.5]} 16... Qd8 {[%clk
0:02:08.7]} 17. Rfd1 {[%clk 0:02:00.8]} 17... Qc7 {[%clk 0:02:03.8]} 18. Nb3
{[%clk 0:01:48.4]} 18... Be6 {[%clk 0:02:02.3]} 19. Bc3 {[%clk 0:01:47.1]} 19...
Rad8 {[%clk 0:01:48.2]} 20. Na5 {[%clk 0:01:44]} 20... Bc8 {[%clk 0:01:45]} 21.
Rb2 {[%clk 0:01:41.2]} 21... Ne7 {[%clk 0:01:41.1]} 22. Qh5 {[%clk 0:01:33.2]}
22... Nf5 {[%clk 0:01:25.5]} 23. Qe2 {[%clk 0:01:24]} 23... Ne7 {[%clk
0:01:21.5]} 24. Rdb1 {[%clk 0:01:23.3]} 24... b6 {[%clk 0:01:21]} 25. Nb3 {[%clk
0:01:23.9]} 25... c5 {[%clk 0:01:12.3]} 26. a4 {[%clk 0:01:22.4]} 26... Nc6
{[%clk 0:01:03.4]} 27. a5 {[%clk 0:01:20.9]} 27... Nb4 {[%clk 0:00:55.6]} 28.
axb6 {[%clk 0:01:15.6]} 28... axb6 {[%clk 0:00:56.5]} 29. Bxb4 {[%clk
0:01:14.9]} 29... cxb4 {[%clk 0:00:56.4]} 30. Nc1 {[%clk 0:01:12.5]} 30... Bf5
{[%clk 0:00:51.7]} 31. e4 {[%clk 0:01:07.1]} 31... Be6 {[%clk 0:00:50.2]} 32.
Na2 {[%clk 0:01:05.9]} 32... Qd7 {[%clk 0:00:41.2]} 33. Bf1 {[%clk 0:01:02.6]}
33... b5 {[%clk 0:00:38.2]} 34. cxb5 {[%clk 0:00:58.4]} 34... Bxa2 {[%clk
0:00:37.8]} 35. Rxa2 {[%clk 0:00:58.3]} 35... Qxb5 {[%clk 0:00:38.1]} 36. Rab2
{[%clk 0:00:56.9]} 36... Bc5 {[%clk 0:00:36.3]} 37. Qf3 {[%clk 0:00:47]} 37...
Qb6 {[%clk 0:00:34.3]} 38. Kg2 {[%clk 0:00:45.7]} 38... Re6 {[%clk 0:00:34.2]}
39. Qe2 {[%clk 0:00:22.5]} 39... Rf6 {[%clk 0:00:32.3]} 40. Qe1 {[%clk
0:00:22.1]} 40... h5 {[%clk 0:00:29.4]} 41. h4 {[%clk 0:00:21.3]} 41... g6
{[%clk 0:00:28.1]} 42. f3 {[%clk 0:00:16.2]} 42... Rb8 {[%clk 0:00:27.5]} 43.
Be2 {[%clk 0:00:16.2]} 43... Kg7 {[%clk 0:00:26.9]} 44. Bd1 {[%clk 0:00:16.5]}
44... Qd6 {[%clk 0:00:26.1]} 45. Qe2 {[%clk 0:00:15.8]} 45... Qd4 {[%clk
0:00:25.9]} 46. Bb3 {[%clk 0:00:15.2]} 46... Be7 {[%clk 0:00:24.6]} 47. Bd5
{[%clk 0:00:15.1]} 47... Rd6 {[%clk 0:00:22.6]} 48. Rc2 {[%clk 0:00:15.2]} 48...
Ra6 {[%clk 0:00:20.2]} 49. Rc7 {[%clk 0:00:12.6]} 49... Ra7 {[%clk 0:00:16.8]}
50. Rc4 {[%clk 0:00:11.2]} 50... Qb6 {[%clk 0:00:16.3]} 51. Qd2 {[%clk
0:00:10.1]} 51... Qd8 {[%clk 0:00:15.2]} 52. Qc2 {[%clk 0:00:09.3]} 52... Qd7
{[%clk 0:00:13.5]} 53. Qb3 {[%clk 0:00:08.6]} 53... Bf8 {[%clk 0:00:11.1]} 54.
Rbc1 {[%clk 0:00:08.5]} 54... Qe7 {[%clk 0:00:09]} 55. Rc6 {[%clk 0:00:07.8]}
55... Ra3 {[%clk 0:00:08.6]} 56. Qb2 {[%clk 0:00:07.6]} 56... Rb7 {[%clk
0:00:05.7]} 57. Rc8 {[%clk 0:00:06.7]} 57... Rd7 {[%clk 0:00:02.1]} 58. R1c2
{[%clk 0:00:05]} 58... Rxd3 {[%clk 0:00:02.3]} 59. Qb1 {[%clk 0:00:03.9]} 59...
R3xd5 {[%clk 0:00:02.4]} 60. exd5 {[%clk 0:00:04]} 60... Rxd5 {[%clk 0:00:03.3]}
61. Qe1 {[%clk 0:00:03.8]} 61... Rd7 {[%clk 0:00:02.3]} 62. Rb8 {[%clk
0:00:03.4]} 62... Qd6 {[%clk 0:00:01.5]} 63. Rbc8 {[%clk 0:00:02.4]} 63... Rc7
{[%clk 0:00:01.9]} 64. R8xc7 {[%clk 0:00:02]} 64... b3 {[%clk 0:00:02.8]} 65.
Rc1 {[%clk 0:00:02.2]} 65... b2 {[%clk 0:00:03.3]} 66. R1c2 {[%clk 0:00:02.1]}
66... Qd4 {[%clk 0:00:03.3]} 67. R7c4 {[%clk 0:00:01.6]} 67... b1=Q {[%clk
0:00:03.5]} 68. Qxb1 {[%clk 0:00:02.1]} 68... Qd5 {[%clk 0:00:03.7]} 69. Qb2
{[%clk 0:00:02.7]} 69... Kh7 {[%clk 0:00:03.4]} 70. Qc3 {[%clk 0:00:03.3]} 70...
Qe6 {[%clk 0:00:04]} 71. Qd2 {[%clk 0:00:03.8]} 71... Bg7 {[%clk 0:00:04.9]} 72.
Qe2 {[%clk 0:00:04.4]} 72... e4 {[%clk 0:00:05.8]} 73. Rxe4 {[%clk 0:00:04.7]}
73... Qf6 {[%clk 0:00:06.3]} 74. Re7 {[%clk 0:00:05]} 74... Kh6 {[%clk 0:00:06]}
75. Rcc7 {[%clk 0:00:05.2]} 75... Kh7 {[%clk 0:00:06.9]} 76. Rxf7 {[%clk
0:00:05.6]} 76... Qd4 {[%clk 0:00:07]} 77. Rxg7+ {[%clk 0:00:05.6]} 1-0

[Event "Early-Titled-Tuesday-Blitz-May-07-2024"]
[Site "Chess.com"]
[Date "2024.05.07"]
[Round "9"]
[White "Alenzer"]
[Black "RebecaJimnz"]
[Result "0-1"]
[WhiteElo "2213"]
[BlackElo "2298"]
[TimeControl "180+1"]
[EndTime "9:54:01 PDT"]
[Termination "RebecaJimnz won by resignation"]

1. e4 {[%clk 0:02:57.4]} 1... c5 {[%clk 0:02:59.5]} 2. Nf3 {[%clk 0:02:57.4]}
2... Nc6 {[%clk 0:03:00.1]} 3. d4 {[%clk 0:02:57.9]} 3... cxd4 {[%clk 0:03:01]}
4. Nxd4 {[%clk 0:02:57.9]} 4... g6 {[%clk 0:03:01.6]} 5. c4 {[%clk 0:02:57.3]}
5... Bg7 {[%clk 0:03:02.1]} 6. Nc2 {[%clk 0:02:56.8]} 6... Nf6 {[%clk
0:03:00.6]} 7. Nc3 {[%clk 0:02:56.8]} 7... d6 {[%clk 0:02:58.7]} 8. Be2 {[%clk
0:02:50.9]} 8... O-O {[%clk 0:02:58.5]} 9. Be3 {[%clk 0:02:48.2]} 9... Be6
{[%clk 0:02:51.5]} 10. O-O {[%clk 0:02:44.5]} 10... Qa5 {[%clk 0:02:34.6]} 11.
Rb1 {[%clk 0:02:24]} 11... Nb4 {[%clk 0:02:16.8]} 12. Nxb4 {[%clk 0:02:05.9]}
12... Qxb4 {[%clk 0:02:17.7]} 13. a3 {[%clk 0:02:06]} 13... Qa5 {[%clk
0:02:17.4]} 14. f3 {[%clk 0:01:55.8]} 14... Rfc8 {[%clk 0:02:15.6]} 15. Nd5
{[%clk 0:01:55.7]} 15... Nxd5 {[%clk 0:02:02.8]} 16. exd5 {[%clk 0:01:52.6]}
16... Bf5 {[%clk 0:01:52.4]} 17. Bd3 {[%clk 0:01:52.7]} 17... Bxd3 {[%clk
0:01:51.5]} 18. Qxd3 {[%clk 0:01:52.8]} 18... Qa4 {[%clk 0:01:51.8]} 19. b4
{[%clk 0:01:45.7]} 19... b6 {[%clk 0:01:41.6]} 20. Rfc1 {[%clk 0:01:39.4]} 20...
Qa6 {[%clk 0:01:36.5]} 21. Bg5 {[%clk 0:01:20.4]} 21... Rc7 {[%clk 0:01:35.4]}
22. Rc2 {[%clk 0:00:45.9]} 22... Rac8 {[%clk 0:01:34]} 23. Rbc1 {[%clk 0:00:46]}
23... Kf8 {[%clk 0:00:57.8]} 24. Be3 {[%clk 0:00:28.3]} 24... Qa4 {[%clk
0:00:48.2]} 25. h4 {[%clk 0:00:25.1]} 25... h5 {[%clk 0:00:44.1]} 26. g4 {[%clk
0:00:24.6]} 26... hxg4 {[%clk 0:00:43.7]} 27. fxg4 {[%clk 0:00:24.9]} 27... Qd7
{[%clk 0:00:44.3]} 28. Qe2 {[%clk 0:00:23.2]} 28... Be5 {[%clk 0:00:38.2]} 29.
Kg2 {[%clk 0:00:21.2]} 29... Kg7 {[%clk 0:00:37.9]} 30. Qf3 {[%clk 0:00:13]}
30... Rh8 {[%clk 0:00:34.7]} 31. Bf2 {[%clk 0:00:11.1]} 31... Bf6 {[%clk
0:00:26.9]} 32. g5 {[%clk 0:00:10.5]} 32... Be5 {[%clk 0:00:26.1]} 33. Qe4
{[%clk 0:00:10.4]} 33... Rh5 {[%clk 0:00:22.1]} 34. c5 {[%clk 0:00:10.3]} 34...
bxc5 {[%clk 0:00:17]} 35. bxc5 {[%clk 0:00:09.5]} 35... Rc8 {[%clk 0:00:12.8]}
36. c6 {[%clk 0:00:09.7]} 36... Qc7 {[%clk 0:00:11.1]} 37. Bd4 {[%clk 0:00:10]}
37... Rch8 {[%clk 0:00:10.2]} 38. Bxe5+ {[%clk 0:00:10.2]} 38... dxe5 {[%clk
0:00:11.1]} 39. Rh1 {[%clk 0:00:08.2]} 39... Qd6 {[%clk 0:00:10.1]} 40. Re2
{[%clk 0:00:08.2]} 40... Qxa3 {[%clk 0:00:09.8]} 41. Qxe5+ {[%clk 0:00:07.9]}
41... Kf8 {[%clk 0:00:10.2]} 42. Qxe7+ {[%clk 0:00:07.2]} 42... Qxe7 {[%clk
0:00:09.3]} 43. Rxe7 {[%clk 0:00:07.4]} 43... Kxe7 {[%clk 0:00:10.2]} 44. Re1+
{[%clk 0:00:07.4]} 44... Kd6 {[%clk 0:00:10.4]} 45. Re4 {[%clk 0:00:06.1]} 45...
Kxd5 {[%clk 0:00:10.3]} 46. Rf4 {[%clk 0:00:03.9]} 46... Kxc6 {[%clk 0:00:09.3]}
47. Rxf7 {[%clk 0:00:04.5]} 47... Rxh4 {[%clk 0:00:09.5]} 48. Rf6+ {[%clk
0:00:05.2]} 48... Kb5 {[%clk 0:00:08.3]} 49. Rxg6 {[%clk 0:00:06.1]} 49... Rg4+
{[%clk 0:00:07.8]} 50. Kf3 {[%clk 0:00:06.3]} 50... Rg1 {[%clk 0:00:07]} 51. Rg7
{[%clk 0:00:06]} 51... a5 {[%clk 0:00:05.8]} 52. g6 {[%clk 0:00:06.4]} 52...
Rh3+ {[%clk 0:00:05.8]} 53. Kf2 {[%clk 0:00:06.5]} 53... Rhg3 {[%clk 0:00:05.8]}
54. Rb7+ {[%clk 0:00:05]} 54... Ka6 {[%clk 0:00:04.2]} 55. Rb8 {[%clk
0:00:03.3]} 55... Rxg6 {[%clk 0:00:03.7]} 56. Ke2 {[%clk 0:00:03.7]} 56... R1g2+
{[%clk 0:00:03.5]} 57. Kd3 {[%clk 0:00:01.9]} 57... R6g4 {[%clk 0:00:03.3]} 58.
Ke3 {[%clk 0:00:02.2]} 58... R2g3+ {[%clk 0:00:03.5]} 59. Kf2 {[%clk 0:00:02.5]}
59... Ra3 {[%clk 0:00:03.5]} 60. Ke2 {[%clk 0:00:02.7]} 60... Rb4 {[%clk
0:00:03.5]} 61. Ra8+ {[%clk 0:00:02.4]} 61... Kb7 {[%clk 0:00:03.5]} 62. Rd8
{[%clk 0:00:03.3]} 62... Rb2+ {[%clk 0:00:03.6]} 63. Ke1 {[%clk 0:00:02.6]}
63... Ra1+ {[%clk 0:00:03.6]} 64. Rd1 {[%clk 0:00:03.5]} 64... Rxd1+ {[%clk
0:00:03.5]} 65. Kxd1 {[%clk 0:00:04.4]} 65... a4 {[%clk 0:00:03.9]} 66. Kc1
{[%clk 0:00:05.3]} 66... a3 {[%clk 0:00:04.3]} 67. Kd1 {[%clk 0:00:06]} 67...
Kb6 {[%clk 0:00:04.6]} 68. Kc1 {[%clk 0:00:06.4]} 68... Kb5 {[%clk 0:00:05]} 69.
Kd1 {[%clk 0:00:06.9]} 69... Kb4 {[%clk 0:00:05.4]} 70. Kc1 {[%clk 0:00:07.4]}
70... Kb3 {[%clk 0:00:06]} 0-1

[Event "Early-Titled-Tuesday-Blitz-May-07-2024"]
[Site "Chess.com"]
[Date "2024.05.07"]
[Round "9"]
[White "Meri-Arabidze"]
[Black "LoaySameer"]
[Result "1-0"]
[WhiteElo "2712"]
[BlackElo "2539"]
[TimeControl "180+1"]
[EndTime "9:54:03 PDT"]
[Termination "Meri-Arabidze won by resignation"]

1. Nf3 {[%clk 0:03:00.9]} 1... Nf6 {[%clk 0:02:59.9]} 2. c4 {[%clk 0:03:01.5]}
2... g6 {[%clk 0:03:00.4]} 3. g3 {[%clk 0:03:01.8]} 3... Bg7 {[%clk 0:03:01]} 4.
Bg2 {[%clk 0:03:02.5]} 4... O-O {[%clk 0:03:01.6]} 5. O-O {[%clk 0:03:03.1]}
5... d6 {[%clk 0:03:02.2]} 6. Nc3 {[%clk 0:03:03]} 6... c6 {[%clk 0:03:02.7]} 7.
Re1 {[%clk 0:03:00.8]} 7... e5 {[%clk 0:03:02.5]} 8. e4 {[%clk 0:02:59]} 8... a6
{[%clk 0:03:01]} 9. d4 {[%clk 0:02:58.9]} 9... Nbd7 {[%clk 0:03:00.7]} 10. h3
{[%clk 0:02:54.4]} 10... Re8 {[%clk 0:03:00.7]} 11. Be3 {[%clk 0:02:53.7]} 11...
exd4 {[%clk 0:02:55.3]} 12. Nxd4 {[%clk 0:02:54.6]} 12... Nc5 {[%clk 0:02:56.1]}
13. Qc2 {[%clk 0:02:54.6]} 13... a5 {[%clk 0:02:53.3]} 14. Rad1 {[%clk 0:02:54]}
14... Qc7 {[%clk 0:02:51.7]} 15. b3 {[%clk 0:02:53.4]} 15... Bd7 {[%clk
0:02:51.6]} 16. Bf4 {[%clk 0:02:36.6]} 16... Nh5 {[%clk 0:02:50.5]} 17. Be3
{[%clk 0:02:27.9]} 17... Rad8 {[%clk 0:02:46.4]} 18. Nde2 {[%clk 0:02:24.5]}
18... Bc8 {[%clk 0:02:45.7]} 19. g4 {[%clk 0:02:16.8]} 19... Nf6 {[%clk
0:02:41.9]} 20. Ng3 {[%clk 0:02:08.5]} 20... b6 {[%clk 0:02:18.4]} 21. g5 {[%clk
0:01:56.8]} 21... Nfd7 {[%clk 0:02:15]} 22. f4 {[%clk 0:01:57]} 22... Nf8 {[%clk
0:02:09.7]} 23. Nce2 {[%clk 0:01:29.7]} 23... d5 {[%clk 0:01:56]} 24. cxd5
{[%clk 0:01:19.7]} 24... cxd5 {[%clk 0:01:56.2]} 25. e5 {[%clk 0:01:19.4]} 25...
Qa7 {[%clk 0:01:46.7]} 26. Nd4 {[%clk 0:01:18.3]} 26... Bb7 {[%clk 0:01:43]} 27.
h4 {[%clk 0:01:15.6]} 27... Qb8 {[%clk 0:01:35.2]} 28. h5 {[%clk 0:01:13.9]}
28... Nfe6 {[%clk 0:01:29.8]} 29. h6 {[%clk 0:01:07.8]} 29... Nxd4 {[%clk
0:01:15.2]} 30. Bxd4 {[%clk 0:01:07.1]} 30... Bh8 {[%clk 0:01:15.5]} 31. Bxc5
{[%clk 0:00:50.3]} 31... Rc8 {[%clk 0:01:11.6]} 32. Bxd5 {[%clk 0:00:47.3]}
32... Rxc5 {[%clk 0:01:09.4]} 33. Qg2 {[%clk 0:00:47.2]} 33... Bc8 {[%clk
0:00:46.7]} 34. Ne4 {[%clk 0:00:37.1]} 34... Rc7 {[%clk 0:00:33.5]} 35. Nf6+
{[%clk 0:00:35.4]} 35... Bxf6 {[%clk 0:00:33.9]} 36. exf6 {[%clk 0:00:36.1]}
36... Be6 {[%clk 0:00:34.3]} 37. Bxe6 {[%clk 0:00:35.5]} 37... fxe6 {[%clk
0:00:34.6]} 38. Qe4 {[%clk 0:00:32.2]} 38... Kf7 {[%clk 0:00:33.6]} 39. Rd2
{[%clk 0:00:30.1]} 39... Qc8 {[%clk 0:00:32.1]} 40. Red1 {[%clk 0:00:30.2]}
40... Rc1 {[%clk 0:00:32.1]} 41. Kg2 {[%clk 0:00:24.6]} 41... Rc7 {[%clk
0:00:20.6]} 42. Rd3 {[%clk 0:00:17.4]} 42... b5 {[%clk 0:00:18.3]} 43. R1d2
{[%clk 0:00:16.7]} 43... b4 {[%clk 0:00:18.8]} 44. Qe5 {[%clk 0:00:15.7]} 44...
Rc2 {[%clk 0:00:08.3]} 45. Kg3 {[%clk 0:00:14.1]} 45... Rc3 {[%clk 0:00:07.9]}
46. Kf2 {[%clk 0:00:08.1]} 46... Rc7 {[%clk 0:00:07]} 47. Qxc7+ {[%clk
0:00:07.1]} 47... Qxc7 {[%clk 0:00:06.1]} 48. Rd7+ {[%clk 0:00:07.8]} 48... Re7
{[%clk 0:00:06.7]} 49. Rxc7 {[%clk 0:00:07.3]} 49... Rxc7 {[%clk 0:00:07.2]} 50.
Ke3 {[%clk 0:00:07]} 50... Rc3+ {[%clk 0:00:05.5]} 51. Ke4 {[%clk 0:00:06.7]}
51... Rc7 {[%clk 0:00:05.9]} 52. Rd6 {[%clk 0:00:04.5]} 52... Ra7 {[%clk
0:00:06]} 53. Rb6 {[%clk 0:00:04.5]} 53... Kf8 {[%clk 0:00:05.7]} 54. Rxe6
{[%clk 0:00:03.9]} 54... Kf7 {[%clk 0:00:06.1]} 55. Rb6 {[%clk 0:00:04.1]} 55...
Kf8 {[%clk 0:00:06.2]} 56. Kd5 {[%clk 0:00:04.5]} 56... Kf7 {[%clk 0:00:06.6]}
57. Kc4 {[%clk 0:00:04.9]} 57... Rc7+ {[%clk 0:00:06.1]} 58. Kb5 {[%clk
0:00:05.3]} 58... Rc2 {[%clk 0:00:06.6]} 59. Kxa5 {[%clk 0:00:05.2]} 59... Rxa2+
{[%clk 0:00:07.3]} 60. Kxb4 {[%clk 0:00:05.5]} 60... Rf2 {[%clk 0:00:08.2]} 61.
Rb7+ {[%clk 0:00:05.8]} 61... Ke6 {[%clk 0:00:08.3]} 62. Re7+ {[%clk 0:00:05.9]}
62... Kd6 {[%clk 0:00:08.4]} 63. Rxh7 {[%clk 0:00:05.9]} 63... Rxf4+ {[%clk
0:00:09.1]} 64. Ka3 {[%clk 0:00:06.2]} 64... Rf5 {[%clk 0:00:09.2]} 65. Rg7
{[%clk 0:00:06]} 65... Rxg5 {[%clk 0:00:09.3]} 66. h7 {[%clk 0:00:06.2]} 66...
Rh5 {[%clk 0:00:09.9]} 67. b4 {[%clk 0:00:03.4]} 67... Ke6 {[%clk 0:00:09.8]}
68. f7 {[%clk 0:00:03.7]} 68... Ke7 {[%clk 0:00:10.4]} 69. Ka4 {[%clk
0:00:03.8]} 69... Rh4 {[%clk 0:00:09.6]} 70. Ka5 {[%clk 0:00:03.9]} 70... Rh1
{[%clk 0:00:09.1]} 71. b5 {[%clk 0:00:04.1]} 71... Ra1+ {[%clk 0:00:09.4]} 72.
Kb6 {[%clk 0:00:04.5]} 72... Rh1 {[%clk 0:00:09.6]} 73. Kb7 {[%clk 0:00:05]}
73... g5 {[%clk 0:00:10]} 74. b6 {[%clk 0:00:05.3]} 74... g4 {[%clk 0:00:10.6]}
75. Rxg4 {[%clk 0:00:04.8]} 75... Rxh7 {[%clk 0:00:10.4]} 76. Rf4 {[%clk
0:00:04.9]} 76... Kf8 {[%clk 0:00:10.6]} 77. Kb8 {[%clk 0:00:05.1]} 77... Rh6
{[%clk 0:00:10.7]} 78. b7 {[%clk 0:00:05.4]} 78... Rh1 {[%clk 0:00:10]} 79. Rc4
{[%clk 0:00:05.3]} 79... Rb1 {[%clk 0:00:09.9]} 80. Kc7 {[%clk 0:00:05.7]} 1-0